[Event "*** SCC Grand Prix: Titled Tuesday Blitz"]
[Site "Chess.com"]
[Date "2020.08.25"]
[Round "7"]
[White "mr65"]
[Black "TokChess"]
[Result "0-1"]
[WhiteElo "2174"]
[BlackElo "2420"]
[TimeControl "180+1"]
[EndTime "11:20:37 PDT"]
[Termination "TokChess won on time"]

1. e4 {[%clk 0:03:00.9]} 1... d6 {[%clk 0:02:59.9]} 2. Nc3 {[%clk 0:02:59.7]}
2... Nf6 {[%clk 0:02:59.8]} 3. Nf3 {[%clk 0:02:59.6]} 3... e5 {[%clk 0:02:59.7]}
4. d4 {[%clk 0:02:57.3]} 4... Nbd7 {[%clk 0:02:59.3]} 5. dxe5 {[%clk 0:02:41.4]}
5... dxe5 {[%clk 0:02:58.5]} 6. Bc4 {[%clk 0:02:39.1]} 6... Be7 {[%clk
0:02:58.2]} 7. h3 {[%clk 0:02:38.4]} 7... O-O {[%clk 0:02:56.4]} 8. O-O {[%clk
0:02:37.2]} 8... c6 {[%clk 0:02:57]} 9. Bg5 {[%clk 0:02:24.3]} 9... b5 {[%clk
0:02:55.2]} 10. Bb3 {[%clk 0:02:23.6]} 10... Qc7 {[%clk 0:02:55.4]} 11. a3
{[%clk 0:02:22.5]} 11... Nc5 {[%clk 0:02:55.3]} 12. Ba2 {[%clk 0:02:21.8]} 12...
a5 {[%clk 0:02:55]} 13. Bxf6 {[%clk 0:02:20.9]} 13... Bxf6 {[%clk 0:02:53.8]}
14. Qe2 {[%clk 0:02:18.7]} 14... Ba6 {[%clk 0:02:47.4]} 15. b4 {[%clk 0:02:16]}
15... Nd7 {[%clk 0:02:28.6]} 16. Rad1 {[%clk 0:02:09.4]} 16... Rfd8 {[%clk
0:02:24.1]} 17. Bb3 {[%clk 0:02:08.1]} 17... axb4 {[%clk 0:02:22.6]} 18. axb4
{[%clk 0:02:07.3]} 18... Nb6 {[%clk 0:02:17.3]} 19. g3 {[%clk 0:02:04.2]} 19...
Rxd1 {[%clk 0:02:12.3]} 20. Rxd1 {[%clk 0:02:02.8]} 20... Rd8 {[%clk 0:02:13.2]}
21. Rxd8+ {[%clk 0:02:01]} 21... Qxd8 {[%clk 0:02:12.9]} 22. Nd1 {[%clk
0:01:48.1]} 22... Bc8 {[%clk 0:02:12.2]} 23. Qd2 {[%clk 0:01:43.4]} 23... Qxd2
{[%clk 0:02:11]} 24. Nxd2 {[%clk 0:01:42.9]} 24... Bxh3 {[%clk 0:02:09.9]} 25.
Ne3 {[%clk 0:01:41.5]} 25... Bd7 {[%clk 0:02:05.3]} 26. f4 {[%clk 0:01:37.5]}
26... exf4 {[%clk 0:02:03.8]} 27. gxf4 {[%clk 0:01:36.9]} 27... Bc3 {[%clk
0:02:03.7]} 28. Nf3 {[%clk 0:01:33.7]} 28... Bxb4 {[%clk 0:02:02.5]} 29. Ne5
{[%clk 0:01:30.9]} 29... Be8 {[%clk 0:02:02.5]} 30. c4 {[%clk 0:01:27]} 30...
bxc4 {[%clk 0:01:52.4]} 31. N3xc4 {[%clk 0:01:26.2]} 31... Nxc4 {[%clk
0:01:52.5]} 32. Bxc4 {[%clk 0:01:25.3]} 32... Bd6 {[%clk 0:01:49.8]} 33. Nd3
{[%clk 0:01:22.5]} 33... Kf8 {[%clk 0:01:48.2]} 34. e5 {[%clk 0:01:21]} 34...
Bc7 {[%clk 0:01:48.2]} 35. Kf2 {[%clk 0:01:20.5]} 35... Ke7 {[%clk 0:01:46.9]}
36. Nb4 {[%clk 0:01:17.3]} 36... Ba5 {[%clk 0:01:43.5]} 37. Nd3 {[%clk
0:01:15.1]} 37... Bd7 {[%clk 0:01:41.5]} 38. Kf3 {[%clk 0:01:14.8]} 38... Bf5
{[%clk 0:01:40.7]} 39. Nc5 {[%clk 0:01:13.4]} 39... Bb6 {[%clk 0:01:39.8]} 40.
Ne4 {[%clk 0:01:12.1]} 40... h6 {[%clk 0:01:33.3]} 41. Ng3 {[%clk 0:01:07.8]}
41... Be6 {[%clk 0:01:33.3]} 42. Bd3 {[%clk 0:01:03.9]} 42... Bc7 {[%clk
0:01:26.4]} 43. Be4 {[%clk 0:00:56.7]} 43... c5 {[%clk 0:01:26.3]} 44. f5 {[%clk
0:00:52.6]} 44... Bb3 {[%clk 0:01:26.1]} 45. f6+ {[%clk 0:00:51.8]} 45... gxf6
{[%clk 0:01:22.8]} 46. Nf5+ {[%clk 0:00:51.2]} 46... Ke6 {[%clk 0:01:14.3]} 47.
exf6 {[%clk 0:00:47.2]} 47... Bd1+ {[%clk 0:01:12.9]} 48. Ke3 {[%clk 0:00:42.8]}
48... h5 {[%clk 0:01:03.4]} 49. Ne7 {[%clk 0:00:33.7]} 49... Be5 {[%clk
0:00:55.7]} 50. Bd5+ {[%clk 0:00:20.4]} 50... Kxf6 {[%clk 0:00:53.6]} 51. Nc6
{[%clk 0:00:18.3]} 51... h4 {[%clk 0:00:46.8]} 52. Bxf7 {[%clk 0:00:14.2]} 52...
Bc7 {[%clk 0:00:35.9]} 53. Bd5 {[%clk 0:00:08.3]} 53... Ba4 {[%clk 0:00:23.6]}
54. Na7 {[%clk 0:00:07.2]} 54... Bd7 {[%clk 0:00:21.2]} 55. Nc6 {[%clk
0:00:04.8]} 55... h3 {[%clk 0:00:18.8]} 0-1

[Event "*** SCC Grand Prix: Titled Tuesday Blitz"]
[Site "Chess.com"]
[Date "2020.08.25"]
[Round "7"]
[White "Mbneu"]
[Black "aNaartjieZA"]
[Result "0-1"]
[WhiteElo "2239"]
[BlackElo "2470"]
[TimeControl "180+1"]
[EndTime "11:20:39 PDT"]
[Termination "aNaartjieZA won by resignation"]

1. d4 {[%clk 0:03:00.9]} 1... Nf6 {[%clk 0:02:59.7]} 2. c4 {[%clk 0:03:00.5]}
2... c5 {[%clk 0:03:00]} 3. d5 {[%clk 0:03:00]} 3... e5 {[%clk 0:03:00.2]} 4. g3
{[%clk 0:02:58.5]} 4... d6 {[%clk 0:03:00.5]} 5. Bg2 {[%clk 0:02:59]} 5... Nbd7
{[%clk 0:03:00.8]} 6. e4 {[%clk 0:02:59.4]} 6... h5 {[%clk 0:03:00.5]} 7. h3
{[%clk 0:02:54.4]} 7... Be7 {[%clk 0:02:59.1]} 8. Ne2 {[%clk 0:02:53.8]} 8... h4
{[%clk 0:02:59]} 9. g4 {[%clk 0:02:53.5]} 9... Nh7 {[%clk 0:02:59.2]} 10. Nd2
{[%clk 0:02:44.9]} 10... Bg5 {[%clk 0:02:55.9]} 11. a3 {[%clk 0:02:34]} 11... b5
{[%clk 0:02:52.2]} 12. cxb5 {[%clk 0:02:30.8]} 12... a6 {[%clk 0:02:52.3]} 13.
Nc4 {[%clk 0:02:30.3]} 13... Qc7 {[%clk 0:02:44.4]} 14. f4 {[%clk 0:02:23.6]}
14... exf4 {[%clk 0:02:43.2]} 15. e5 {[%clk 0:02:18.1]} 15... O-O {[%clk
0:02:30.1]} 16. e6 {[%clk 0:02:07.6]} 16... Ndf6 {[%clk 0:02:21.5]} 17. b6
{[%clk 0:02:03.3]} 17... Qe7 {[%clk 0:02:18.8]} 18. Bxf4 {[%clk 0:01:55.1]}
18... Bxf4 {[%clk 0:02:03.8]} 19. Nxf4 {[%clk 0:01:54.4]} 19... g5 {[%clk
0:02:03.1]} 20. Ne2 {[%clk 0:01:35.4]} 20... fxe6 {[%clk 0:01:57.3]} 21. O-O
{[%clk 0:01:30.9]} 21... e5 {[%clk 0:01:52.2]} 22. Nc3 {[%clk 0:01:23.1]} 22...
Bd7 {[%clk 0:01:46.3]} 23. Qc2 {[%clk 0:01:20.6]} 23... Bb5 {[%clk 0:01:45]} 24.
b3 {[%clk 0:01:11.6]} 24... Rab8 {[%clk 0:01:42.2]} 25. Rf5 {[%clk 0:01:00.5]}
25... Bxc4 {[%clk 0:01:37.3]} 26. bxc4 {[%clk 0:01:00.1]} 26... Rxb6 {[%clk
0:01:37]} 27. Raf1 {[%clk 0:00:59.8]} 27... Rbb8 {[%clk 0:01:30.1]} 28. Ne4
{[%clk 0:00:57.3]} 28... Nxe4 {[%clk 0:01:29.1]} 29. Qxe4 {[%clk 0:00:56.3]}
29... Rxf5 {[%clk 0:01:25.6]} 30. Rxf5 {[%clk 0:00:49.7]} 30... Rf8 {[%clk
0:01:24.6]} 31. Rxf8+ {[%clk 0:00:39.1]} 31... Nxf8 {[%clk 0:01:21]} 32. Qf5
{[%clk 0:00:38.8]} 32... Kg7 {[%clk 0:01:12.3]} 33. Be4 {[%clk 0:00:37.5]} 33...
Qf6 {[%clk 0:01:11.6]} 34. Qc8 {[%clk 0:00:29.7]} 34... Qf4 {[%clk 0:01:10.9]}
35. Qc7+ {[%clk 0:00:29]} 35... Kg8 {[%clk 0:01:08.5]} 36. Bf5 {[%clk
0:00:25.9]} 36... Qg3+ {[%clk 0:01:07.5]} 37. Kf1 {[%clk 0:00:24.6]} 37... Qxh3+
{[%clk 0:01:07.6]} 38. Ke2 {[%clk 0:00:24.7]} 38... Qg2+ {[%clk 0:01:05.8]} 39.
Kd3 {[%clk 0:00:24.7]} 39... Qf3+ {[%clk 0:01:04.1]} 40. Kd2 {[%clk 0:00:24.3]}
40... Qf4+ {[%clk 0:01:01.2]} 41. Ke1 {[%clk 0:00:21.2]} 41... h3 {[%clk
0:00:56.3]} 42. Qxd6 {[%clk 0:00:12.3]} 42... h2 {[%clk 0:00:53.9]} 43. Qh6
{[%clk 0:00:12.2]} 43... Qg3+ {[%clk 0:00:50.2]} 44. Kd2 {[%clk 0:00:11.5]}
44... Qg2+ {[%clk 0:00:49.6]} 45. Kc3 {[%clk 0:00:11.5]} 45... Qf3+ {[%clk
0:00:41.6]} 46. Kb2 {[%clk 0:00:10.9]} 46... h1=Q {[%clk 0:00:28.5]} 47. Qxg5+
{[%clk 0:00:09.6]} 47... Kf7 {[%clk 0:00:28.7]} 48. Be6+ {[%clk 0:00:09.4]}
48... Nxe6 {[%clk 0:00:27.7]} 49. dxe6+ {[%clk 0:00:08.9]} 49... Kxe6 {[%clk
0:00:27.7]} 50. Qg6+ {[%clk 0:00:07]} 50... Qf6 {[%clk 0:00:18.9]} 51. Qe8+
{[%clk 0:00:06.6]} 51... Qe7 {[%clk 0:00:17.3]} 52. Qg8+ {[%clk 0:00:04.6]}
52... Kd7 {[%clk 0:00:16.1]} 53. Qd5+ {[%clk 0:00:03.6]} 53... Qxd5 {[%clk
0:00:15.5]} 0-1

[Event "*** SCC Grand Prix: Titled Tuesday Blitz"]
[Site "Chess.com"]
[Date "2020.08.25"]
[Round "7"]
[White "FearNoEvil12"]
[Black "Efremov_Vlad"]
[Result "0-1"]
[WhiteElo "1967"]
[BlackElo "2206"]
[TimeControl "180+1"]
[EndTime "11:20:39 PDT"]
[Termination "Efremov_Vlad won on time"]

1. e4 {[%clk 0:03:00.9]} 1... c5 {[%clk 0:03:00.1]} 2. Nc3 {[%clk 0:02:59.6]}
2... Nc6 {[%clk 0:02:59.7]} 3. f4 {[%clk 0:03:00]} 3... g6 {[%clk 0:02:58.9]} 4.
Nf3 {[%clk 0:03:00.4]} 4... Bg7 {[%clk 0:02:58.9]} 5. Bc4 {[%clk 0:03:00.5]}
5... e6 {[%clk 0:02:56.7]} 6. f5 {[%clk 0:03:00.8]} 6... Nd4 {[%clk 0:02:52.7]}
7. d3 {[%clk 0:02:57.3]} 7... gxf5 {[%clk 0:02:46]} 8. O-O {[%clk 0:02:55.1]}
8... Ne7 {[%clk 0:02:36.6]} 9. Bg5 {[%clk 0:02:52.1]} 9... f6 {[%clk 0:01:59.9]}
10. Be3 {[%clk 0:02:42.3]} 10... fxe4 {[%clk 0:01:50.3]} 11. dxe4 {[%clk
0:02:40]} 11... Nec6 {[%clk 0:01:48.3]} 12. Nxd4 {[%clk 0:02:31.7]} 12... Nxd4
{[%clk 0:01:49.2]} 13. Bxd4 {[%clk 0:02:31.5]} 13... cxd4 {[%clk 0:01:48.7]} 14.
Qxd4 {[%clk 0:02:31.3]} 14... O-O {[%clk 0:01:40]} 15. Rad1 {[%clk 0:02:25.7]}
15... Kh8 {[%clk 0:01:32.8]} 16. Kh1 {[%clk 0:02:23.8]} 16... a6 {[%clk
0:01:29.9]} 17. a4 {[%clk 0:02:17.6]} 17... Qe7 {[%clk 0:01:26.8]} 18. Rf3
{[%clk 0:02:14.3]} 18... f5 {[%clk 0:01:20.9]} 19. Qf2 {[%clk 0:02:06.6]} 19...
d6 {[%clk 0:01:13.8]} 20. exf5 {[%clk 0:02:00.2]} 20... d5 {[%clk 0:00:41.6]}
21. Bd3 {[%clk 0:01:54.4]} 21... d4 {[%clk 0:00:32.3]} 22. Ne2 {[%clk
0:01:49.4]} 22... e5 {[%clk 0:00:30.9]} 23. Ng3 {[%clk 0:01:47.5]} 23... Bd7
{[%clk 0:00:26.4]} 24. Ne4 {[%clk 0:01:42]} 24... Bf6 {[%clk 0:00:25.7]} 25. Rf1
{[%clk 0:01:32.3]} 25... Bc6 {[%clk 0:00:25.4]} 26. g4 {[%clk 0:01:28]} 26...
Bxe4 {[%clk 0:00:20.8]} 27. Bxe4 {[%clk 0:01:27]} 27... Rad8 {[%clk 0:00:20.9]}
28. Rg1 {[%clk 0:01:22.6]} 28... Bg5 {[%clk 0:00:20.2]} 29. Qg2 {[%clk
0:01:10.9]} 29... Qf6 {[%clk 0:00:19.4]} 30. h4 {[%clk 0:01:06.5]} 30... Bxh4
{[%clk 0:00:18.7]} 31. Rh3 {[%clk 0:01:06.2]} 31... Bg5 {[%clk 0:00:18]} 32. Qh2
{[%clk 0:01:05.4]} 32... h6 {[%clk 0:00:18.3]} 33. Rh5 {[%clk 0:01:03.6]} 33...
Kg7 {[%clk 0:00:18.4]} 34. Qh3 {[%clk 0:00:58.1]} 34... Rh8 {[%clk 0:00:18.4]}
35. Qb3 {[%clk 0:00:56.3]} 35... Qf7 {[%clk 0:00:17.1]} 36. Qxf7+ {[%clk
0:00:52.3]} 36... Kxf7 {[%clk 0:00:18]} 37. Bxb7 {[%clk 0:00:51.8]} 37... Rb8
{[%clk 0:00:17.8]} 38. Bxa6 {[%clk 0:00:51.1]} 38... Rxb2 {[%clk 0:00:18.4]} 39.
Bd3 {[%clk 0:00:50.6]} 39... Ra8 {[%clk 0:00:16.8]} 40. Ra1 {[%clk 0:00:48.1]}
40... Ra5 {[%clk 0:00:16.9]} 41. Rh2 {[%clk 0:00:46.5]} 41... Rb4 {[%clk
0:00:17.1]} 42. Re2 {[%clk 0:00:45.8]} 42... Kf6 {[%clk 0:00:16.5]} 43. Kg2
{[%clk 0:00:36.4]} 43... Rbxa4 {[%clk 0:00:16.6]} 44. Rxa4 {[%clk 0:00:35.4]}
44... Rxa4 {[%clk 0:00:17.5]} 45. Kf3 {[%clk 0:00:35.1]} 45... Ra3 {[%clk
0:00:17.5]} 46. Ke4 {[%clk 0:00:34.7]} 46... Ra1 {[%clk 0:00:16.7]} 47. Kd5
{[%clk 0:00:31.9]} 47... Ra5+ {[%clk 0:00:16.7]} 48. Ke4 {[%clk 0:00:30.6]}
48... Ra1 {[%clk 0:00:16.5]} 49. Kd5 {[%clk 0:00:29.3]} 49... Ra5+ {[%clk
0:00:16.5]} 50. Ke4 {[%clk 0:00:29.3]} 50... Bf4 {[%clk 0:00:16.3]} 51. Re1
{[%clk 0:00:25]} 51... Kg5 {[%clk 0:00:16.5]} 52. Rg1 {[%clk 0:00:17.4]} 52...
Ra3 {[%clk 0:00:17]} 53. Kd5 {[%clk 0:00:13.4]} 53... Ra5+ {[%clk 0:00:16.9]}
54. Ke4 {[%clk 0:00:13.1]} 54... Ra7 {[%clk 0:00:16.2]} 55. Kd5 {[%clk
0:00:12.4]} 55... Rc7 {[%clk 0:00:16.8]} 56. Ke6 {[%clk 0:00:11.1]} 56... Rb7
{[%clk 0:00:16.3]} 57. Rh1 {[%clk 0:00:06.5]} 57... Rb6+ {[%clk 0:00:16.3]} 58.
Kd5 {[%clk 0:00:05.6]} 58... Kxg4 {[%clk 0:00:16]} 0-1

[Event "*** SCC Grand Prix: Titled Tuesday Blitz"]
[Site "Chess.com"]
[Date "2020.08.25"]
[Round "7"]
[White "Evandro_Barbosa"]
[Black "StephenDedalus83"]
[Result "1-0"]
[WhiteElo "2567"]
[BlackElo "2726"]
[TimeControl "180+1"]
[EndTime "11:20:40 PDT"]
[Termination "Evandro_Barbosa won by resignation"]

1. e4 {[%clk 0:03:00.9]} 1... c5 {[%clk 0:02:59.8]} 2. Nf3 {[%clk 0:03:00.8]}
2... Nc6 {[%clk 0:02:59.4]} 3. Bb5 {[%clk 0:02:59.7]} 3... g6 {[%clk 0:02:58.9]}
4. Bxc6 {[%clk 0:02:59]} 4... dxc6 {[%clk 0:02:59.8]} 5. d3 {[%clk 0:02:58.8]}
5... Bg7 {[%clk 0:03:00.4]} 6. h3 {[%clk 0:02:58.5]} 6... Nf6 {[%clk 0:03:00.2]}
7. Nc3 {[%clk 0:02:58.7]} 7... Nd7 {[%clk 0:02:59.5]} 8. Be3 {[%clk 0:02:58.7]}
8... e5 {[%clk 0:02:59.4]} 9. Qd2 {[%clk 0:02:58.5]} 9... Qe7 {[%clk 0:02:59.9]}
10. Bh6 {[%clk 0:02:57.6]} 10... f6 {[%clk 0:03:00.3]} 11. Nh4 {[%clk
0:02:50.4]} 11... Nf8 {[%clk 0:02:54.3]} 12. g3 {[%clk 0:02:45.3]} 12... Ne6
{[%clk 0:02:50.6]} 13. Bxg7 {[%clk 0:02:42.7]} 13... Qxg7 {[%clk 0:02:50]} 14.
f4 {[%clk 0:02:40.8]} 14... exf4 {[%clk 0:02:49.3]} 15. gxf4 {[%clk 0:02:40.1]}
15... Qh6 {[%clk 0:02:49.1]} 16. Ng2 {[%clk 0:02:38.7]} 16... Nd4 {[%clk
0:02:30.7]} 17. O-O-O {[%clk 0:02:32.3]} 17... Be6 {[%clk 0:02:30.4]} 18. Ne2
{[%clk 0:02:13.9]} 18... Nxe2+ {[%clk 0:02:25.7]} 19. Qxe2 {[%clk 0:02:13.8]}
19... O-O-O {[%clk 0:02:26.2]} 20. Kb1 {[%clk 0:02:12.1]} 20... Rhe8 {[%clk
0:02:24.3]} 21. Qf2 {[%clk 0:02:09.2]} 21... b6 {[%clk 0:02:23.2]} 22. Ne3
{[%clk 0:02:03.2]} 22... f5 {[%clk 0:02:19.9]} 23. e5 {[%clk 0:01:59.4]} 23...
Rd4 {[%clk 0:02:19.2]} 24. Rhf1 {[%clk 0:01:35.5]} 24... Red8 {[%clk 0:02:18.2]}
25. h4 {[%clk 0:01:28.2]} 25... Kb7 {[%clk 0:02:03.5]} 26. b3 {[%clk 0:01:27.5]}
26... a5 {[%clk 0:02:01.6]} 27. Qg3 {[%clk 0:01:16.1]} 27... a4 {[%clk
0:01:59.4]} 28. Qg5 {[%clk 0:01:15.1]} 28... Qxg5 {[%clk 0:01:29.4]} 29. hxg5
{[%clk 0:01:16]} 29... Rh8 {[%clk 0:01:28.4]} 30. c3 {[%clk 0:01:04.4]} 30...
Rd7 {[%clk 0:01:27.4]} 31. Kc2 {[%clk 0:00:59]} 31... h5 {[%clk 0:01:23.2]} 32.
gxh6 {[%clk 0:00:45.5]} 32... Rxh6 {[%clk 0:01:23]} 33. Rh1 {[%clk 0:00:42.3]}
33... axb3+ {[%clk 0:01:19.9]} 34. axb3 {[%clk 0:00:41.9]} 34... Rdh7 {[%clk
0:01:20.4]} 35. Rxh6 {[%clk 0:00:41.6]} 35... Rxh6 {[%clk 0:01:21.3]} 36. Rg1
{[%clk 0:00:41.9]} 36... Kc7 {[%clk 0:01:15.7]} 37. Rg2 {[%clk 0:00:39.9]} 37...
Kd7 {[%clk 0:01:15.4]} 38. c4 {[%clk 0:00:31.5]} 38... Ke7 {[%clk 0:01:14.1]}
39. Kd2 {[%clk 0:00:31.7]} 39... Kf7 {[%clk 0:01:13.6]} 40. Nf1 {[%clk
0:00:25.5]} 40... Rh8 {[%clk 0:01:08.5]} 41. Nh2 {[%clk 0:00:25.3]} 41... Rh3
{[%clk 0:01:04]} 42. Ke2 {[%clk 0:00:20.9]} 42... b5 {[%clk 0:01:02.1]} 43. Nf3
{[%clk 0:00:20.8]} 43... Rh6 {[%clk 0:00:50.9]} 44. Ke3 {[%clk 0:00:21.1]} 44...
Rh3 {[%clk 0:00:44.3]} 45. Ra2 {[%clk 0:00:19.9]} 45... g5 {[%clk 0:00:44.2]}
46. Ra7+ {[%clk 0:00:17.9]} 46... Kg6 {[%clk 0:00:43.7]} 47. fxg5 {[%clk
0:00:18.5]} 47... Kh5 {[%clk 0:00:43.1]} 48. Kf4 {[%clk 0:00:17]} 48... Kg6
{[%clk 0:00:41.6]} 49. Re7 {[%clk 0:00:16.6]} 49... Bg8 {[%clk 0:00:41.2]} 50.
e6 {[%clk 0:00:16.4]} 50... Rh1 {[%clk 0:00:40.1]} 51. Ne5+ {[%clk 0:00:16.1]}
51... Kh5 {[%clk 0:00:39.1]} 52. Nf7 {[%clk 0:00:15.7]} 52... Rf1+ {[%clk
0:00:36.5]} 53. Ke3 {[%clk 0:00:12.3]} 53... f4+ {[%clk 0:00:35.4]} 54. Ke2
{[%clk 0:00:12.4]} 54... Rh1 {[%clk 0:00:34.8]} 55. Re8 {[%clk 0:00:12.6]} 55...
Bh7 {[%clk 0:00:32.4]} 56. Rh8 {[%clk 0:00:10.6]} 56... Kg6 {[%clk 0:00:25.5]}
57. e7 {[%clk 0:00:10.7]} 57... f3+ {[%clk 0:00:21.5]} 58. Kxf3 {[%clk
0:00:10.2]} 58... Rf1+ {[%clk 0:00:20.9]} 59. Ke2 {[%clk 0:00:10.4]} 59... Rxf7
{[%clk 0:00:20.1]} 60. e8=Q {[%clk 0:00:10.7]} 1-0

[Event "*** SCC Grand Prix: Titled Tuesday Blitz"]
[Site "Chess.com"]
[Date "2020.08.25"]
[Round "7"]
[White "davidkalashian"]
[Black "allvim"]
[Result "1-0"]
[WhiteElo "2612"]
[BlackElo "2427"]
[TimeControl "180+1"]
[EndTime "11:20:42 PDT"]
[Termination "davidkalashian won by resignation"]

1. e4 {[%clk 0:03:00.9]} 1... c5 {[%clk 0:02:57.1]} 2. Nc3 {[%clk 0:03:00.3]}
2... e6 {[%clk 0:02:56.4]} 3. Nf3 {[%clk 0:03:00.1]} 3... a6 {[%clk 0:02:56]} 4.
d4 {[%clk 0:02:59.7]} 4... cxd4 {[%clk 0:02:56.9]} 5. Nxd4 {[%clk 0:03:00.1]}
5... Nc6 {[%clk 0:02:57.2]} 6. Be2 {[%clk 0:02:58.1]} 6... Nf6 {[%clk
0:02:55.8]} 7. O-O {[%clk 0:02:56.7]} 7... Be7 {[%clk 0:02:56.3]} 8. Be3 {[%clk
0:02:55.2]} 8... O-O {[%clk 0:02:55.6]} 9. f4 {[%clk 0:02:53.3]} 9... d6 {[%clk
0:02:51.9]} 10. a4 {[%clk 0:02:51.9]} 10... Bd7 {[%clk 0:02:47.4]} 11. Kh1
{[%clk 0:02:49.5]} 11... Rc8 {[%clk 0:02:47.1]} 12. g4 {[%clk 0:02:38.6]} 12...
Nxd4 {[%clk 0:02:46.9]} 13. Bxd4 {[%clk 0:02:35.6]} 13... Bc6 {[%clk 0:02:47.1]}
14. Bf3 {[%clk 0:02:35.3]} 14... e5 {[%clk 0:02:44.1]} 15. fxe5 {[%clk
0:02:22.7]} 15... dxe5 {[%clk 0:02:44.6]} 16. Bxe5 {[%clk 0:02:23]} 16... Qb6
{[%clk 0:02:44.7]} 17. Nd5 {[%clk 0:02:11]} 17... Nxd5 {[%clk 0:02:17.8]} 18.
exd5 {[%clk 0:02:11.9]} 18... Bd7 {[%clk 0:02:06]} 19. b3 {[%clk 0:02:04.1]}
19... Bf6 {[%clk 0:01:54]} 20. Bxf6 {[%clk 0:02:00.8]} 20... Qxf6 {[%clk
0:01:54.9]} 21. c4 {[%clk 0:02:00.8]} 21... Rfe8 {[%clk 0:01:49.9]} 22. Bg2
{[%clk 0:01:55.8]} 22... Qg6 {[%clk 0:01:40.8]} 23. h3 {[%clk 0:01:50.9]} 23...
Re3 {[%clk 0:01:39.7]} 24. Rf3 {[%clk 0:01:39.1]} 24... Rce8 {[%clk 0:01:36.2]}
25. Qd4 {[%clk 0:01:21.4]} 25... Rxf3 {[%clk 0:01:22.6]} 26. Bxf3 {[%clk
0:01:22.3]} 26... Qc2 {[%clk 0:01:08.5]} 27. c5 {[%clk 0:00:55.4]} 27... Qxb3
{[%clk 0:01:05.8]} 28. Bg2 {[%clk 0:00:55.6]} 28... Qg3 {[%clk 0:00:51.1]} 29.
c6 {[%clk 0:00:39.4]} 29... bxc6 {[%clk 0:00:19.4]} 30. dxc6 {[%clk 0:00:40.3]}
30... Bxc6 {[%clk 0:00:20]} 31. Bxc6 {[%clk 0:00:36.7]} 31... Qxh3+ {[%clk
0:00:20.2]} 32. Kg1 {[%clk 0:00:37]} 32... Qg3+ {[%clk 0:00:20.7]} 33. Bg2
{[%clk 0:00:35.9]} 33... Re1+ {[%clk 0:00:21.2]} 34. Rxe1 {[%clk 0:00:34.5]}
34... Qxe1+ {[%clk 0:00:22.1]} 35. Kh2 {[%clk 0:00:33.8]} 35... Qh4+ {[%clk
0:00:12.6]} 36. Bh3 {[%clk 0:00:33.5]} 36... h6 {[%clk 0:00:10.2]} 37. Kg2
{[%clk 0:00:26.3]} 37... Qg5 {[%clk 0:00:09.1]} 38. Qe4 {[%clk 0:00:17.8]} 38...
h5 {[%clk 0:00:05]} 39. Kg3 {[%clk 0:00:15.1]} 39... h4+ {[%clk 0:00:04.4]} 40.
Kf3 {[%clk 0:00:13.1]} 40... a5 {[%clk 0:00:04.6]} 41. Qf5 {[%clk 0:00:10.2]}
41... Qd2 {[%clk 0:00:04.5]} 42. g5 {[%clk 0:00:10.3]} 42... Qd1+ {[%clk
0:00:03.4]} 43. Ke4 {[%clk 0:00:09.1]} 43... Qxa4+ {[%clk 0:00:03.9]} 44. Ke3
{[%clk 0:00:07.8]} 44... Qa3+ {[%clk 0:00:02.8]} 45. Kd4 {[%clk 0:00:07.8]}
45... Qb4+ {[%clk 0:00:03.1]} 46. Kd3 {[%clk 0:00:07.8]} 46... a4 {[%clk
0:00:04]} 47. Qc8+ {[%clk 0:00:06.8]} 47... Kh7 {[%clk 0:00:04.3]} 48. Qf5+
{[%clk 0:00:07.3]} 48... g6 {[%clk 0:00:04.9]} 49. Qxf7+ {[%clk 0:00:07]} 49...
Kh8 {[%clk 0:00:05.3]} 50. Qf6+ {[%clk 0:00:07]} 50... Kh7 {[%clk 0:00:05.7]}
51. Be6 {[%clk 0:00:05.7]} 51... Qb3+ {[%clk 0:00:05.6]} 52. Bxb3 {[%clk
0:00:05.1]} 52... axb3 {[%clk 0:00:06.5]} 53. Qf7+ {[%clk 0:00:05.3]} 1-0